fUST/lending_fUST_20250828
["ID","MTS","AMOUNT","RATE_DAILY","PERIOD"]
[381809965,1756356689884,-480.0,0.00021758,2]
[381809966,1756356689894,-480.0,0.00021758,2]
[381809967,1756356689903,-480.0,0.00021758,2]
[381809968,1756356689913,-480.0,0.00021758,2]
[381809969,1756356689922,-480.0,0.00021758,2]
[381809970,1756356689932,-480.0,0.00021758,2]
[381809971,1756356689941,-480.0,0.00021758,2]
[381809972,1756356689950,-480.0,0.00021758,2]
[381809973,1756356689960,-480.0,0.00021758,2]
[381809974,1756356689969,-644.18,0.00021758,2]
[381809975,1756356689978,-480.0,0.00021758,2]
[381809976,1756356689988,-480.0,0.00021758,2]
[381809977,1756356689997,-480.0,0.00021758,2]
[381809978,1756356690006,-480.0,0.00021758,2]
[381809979,1756356690015,-480.0,0.00021758,2]
[381809980,1756356690025,-480.0,0.00021758,2]
[381809981,1756356690034,-480.0,0.00021758,2]
[381809982,1756356690044,-480.0,0.00021758,2]
[381809983,1756356690053,-480.0,0.00021758,2]
[381809984,1756356690062,-617.45,0.00021758,2]
[381809985,1756356690072,-570.55,0.00021758,2]
[381809986,1756356690082,-480.0,0.00021758,2]
[381809987,1756356690092,-616.29,0.00021758,2]
[381809988,1756356690101,-1200.27,0.00021758,2]
[381809989,1756356690111,-480.0,0.00021758,2]
[381809990,1756356690123,-601.73,0.00021758,2]
[381809991,1756356690132,-480.0,0.00021758,2]
[381809992,1756356690142,-480.0,0.00021758,2]
[381809993,1756356690152,-480.0,0.00021758,2]
[381809994,1756356690162,-1428.02,0.00021758,2]
[381809995,1756356690171,-480.0,0.00021758,2]
[381809996,1756356690180,-2722.72,0.00021758,2]
[381809997,1756356690190,-480.0,0.00021758,2]
[381809998,1756356690200,-480.0,0.00021758,2]
[381809999,1756356690209,-480.0,0.00021758,2]
[381810000,1756356690218,-480.0,0.00021758,2]
[381810001,1756356690227,-480.0,0.00021758,2]
[381810002,1756356690236,-535.97670542,0.00021758,2]
[381810003,1756356690247,-4245.17,0.00021758,2]
[381810004,1756356690256,-480.0,0.00021758,2]
[381810005,1756356690266,-449.00525871,0.00021758,2]
[381810006,1756356690275,-480.0,0.00021758,2]
[381810007,1756356690285,-480.0,0.00021758,2]
[381810008,1756356690295,-480.0,0.00021758,2]
[381810009,1756356690305,-480.0,0.00021758,2]
[381810010,1756356690314,-541.84,0.00021758,2]
[381810011,1756356690324,-480.0,0.00021758,2]
[381810012,1756356690334,-480.0,0.00021758,2]
[381810013,1756356690343,-480.0,0.00021758,2]
[381810014,1756356690352,-480.0,0.00021758,2]
[381810015,1756356690362,-568.72,0.00021758,2]
[381810016,1756356690380,-1881.85,0.00021758,2]
[381810017,1756356690391,-480.0,0.00021758,2]
[381810018,1756356690400,-480.0,0.00021758,2]
[381810019,1756356690409,-662.5,0.00021758,2]
[381810020,1756356690419,-554.0,0.00021758,2]
[381810021,1756356690430,-480.0,0.00021758,2]
[381810022,1756356690439,-480.0,0.00021758,2]
[381810023,1756356690448,-480.0,0.0002176,2]
[381810024,1756356690457,-2673.38,0.0002176,2]
[381810025,1756356690467,-3486.98,0.0002176,2]
[381810026,1756356690476,-1278.52,0.0002176,2]
[381810027,1756356690485,-562.42,0.0002176,2]
[381810028,1756356690495,-1660.3,0.0002176,2]
[381810029,1756356690504,-941.02,0.0002176,2]
[381810030,1756356690513,-811.95,0.0002176,2]
[381810031,1756356690523,-1515.77,0.0002176,2]
[381810032,1756356690535,-592.54,0.0002176,2]
[381810033,1756356690544,-760.29,0.0002176,2]
[381810034,1756356690554,-1016.7,0.0002176,2]
[381810035,1756356690562,-480.0,0.0002176,2]
[381810036,1756356690572,-530.32,0.0002176,2]
[381810037,1756356690581,-1850.6,0.0002176,2]
[381810038,1756356690590,-1997.18,0.0002176,2]
[381810039,1756356690599,-1812.86,0.0002176,2]
[381810040,1756356690608,-542.84,0.0002176,2]
[381810041,1756356690620,-480.0,0.00021766,2]
[381810042,1756356690761,-501.0,0.00021784,2]
[381810043,1756356690771,-420.0,0.00021794,2]
[381810044,1756356690780,-303.0,0.00021794,2]
[381810045,1756356690790,-420.0,0.00021794,2]
[381810046,1756356690799,-304.0,0.00021794,2]
[381810047,1756356690807,-420.0,0.00021794,2]
[381810048,1756356690817,-2000.0,0.00021816,2]
[381810049,1756356690826,-2000.0,0.00021816,2]
[381810050,1756356690835,-1249.7549237,0.00021816,2]
[381810051,1756356690844,-2000.0,0.00021816,2]
[381810052,1756356690854,-2000.0,0.00021816,2]
[381810053,1756356690863,-2000.0,0.00021816,2]
[381810054,1756356690875,-575.25677081,0.00021816,2]
[381810055,1756356690884,-480.0,0.00021828,2]
[381810056,1756356690894,-512.47,0.00021828,2]
[381810057,1756356690903,-480.0,0.00021828,2]
[381810058,1756356690913,-708.4,0.00021828,2]
[381810059,1756356690922,-1021.12,0.00021828,2]
[381810060,1756356690931,-1536.3,0.00021828,2]
[381810061,1756356690941,-853.77,0.00021828,2]
[381810062,1756356690950,-584.77,0.00021828,2]
[381810063,1756356690959,-480.0,0.00021828,2]
[381810064,1756356690970,-545.28,0.00021828,2]
[381810065,1756356690980,-686.06,0.00021828,2]
[381810066,1756356690989,-480.0,0.00021828,2]
[381810067,1756356690998,-694.72,0.00021828,2]
[381810068,1756356691007,-480.0,0.00021828,2]
[381810069,1756356691017,-480.0,0.00021828,2]
[381810070,1756356691027,-1147.93,0.00021828,2]
[381810071,1756356691036,-677.79,0.00021828,2]
[381810072,1756356691045,-1123.67,0.00021828,2]
[381810073,1756356691054,-544.12,0.00021828,2]
[381810074,1756356691064,-776.24,0.00021828,2]
[381810075,1756356691073,-480.0,0.00021828,2]
[381810076,1756356691082,-518.51,0.00021828,2]
[381810077,1756356691092,-498.32,0.00021828,2]
[381810078,1756356691101,-1614.03,0.00021828,2]
[381810079,1756356691111,-997.72,0.00021828,2]
[381810080,1756356691120,-586.07,0.00021828,2]
[381810081,1756356691129,-480.0,0.00021828,2]
[381810082,1756356691139,-487.54,0.00021828,2]
[381810083,1756356691148,-535.44,0.00021828,2]
[381810084,1756356691157,-687.49,0.00021828,2]
[381810085,1756356691167,-783.92,0.00021828,2]
[381810086,1756356691176,-855.7,0.00021828,2]
[381810087,1756356691186,-480.0,0.00021828,2]
[381810088,1756356691195,-501.01,0.00021828,2]
[381810089,1756356691205,-543.48,0.00021828,2]
[381810090,1756356691214,-1003.05,0.00021828,2]
[381810091,1756356691223,-1200.0,0.00021828,2]
[381810092,1756356691233,-480.0,0.00021828,2]
[381810093,1756356691243,-1135.77,0.00021828,2]
[381810094,1756356691253,-921.25,0.00021828,2]
[381810095,1756356691263,-736.35,0.00021828,2]
[381810096,1756356691272,-480.0,0.00021828,2]
[381810097,1756356691281,-489.03,0.00021828,2]
[381810098,1756356691291,-1501.6,0.00021828,2]
[381810099,1756356691300,-388.60873505,0.00021828,2]
[381810100,1756356691309,-480.0,0.00021828,2]
[381810101,1756356691319,-586.28,0.00021828,2]
[381810102,1756356691329,-687.31,0.00021828,2]
[381810103,1756356691338,-490.1,0.00021828,2]
[381810104,1756356691347,-543.14,0.00021828,2]
[381810105,1756356691357,-1457.75,0.00021828,2]
[381810106,1756356691367,-480.0,0.00021828,2]
[381810107,1756356691376,-1828.87,0.00021828,2]
[381810108,1756356691386,-480.0,0.00021828,2]
[381810109,1756356691395,-480.0,0.00021828,2]
[381810110,1756356691405,-480.0,0.00021828,2]
[381810111,1756356691414,-503.14,0.00021828,2]
[381810112,1756356691423,-480.0,0.00021828,2]
[381810113,1756356691433,-480.0,0.00021828,2]
[381810114,1756356691442,-749.19,0.00021828,2]
[381810115,1756356691451,-1023.93,0.00021828,2]
[381810116,1756356691460,-4065.99,0.00021828,2]
[381810117,1756356691469,-480.0,0.00021828,2]
[381810118,1756356691479,-571.63,0.00021828,2]
[381810119,1756356691489,-1376.72,0.00021828,2]
[381810120,1756356691498,-482.14645057,0.00021828,2]
[381810121,1756356691510,-2297.07,0.00021828,2]
[381810122,1756356691519,-799.5,0.00021828,2]
[381810123,1756356691532,-480.0,0.00021828,2]
[381810124,1756356691545,-633.53,0.00021828,2]
[381810125,1756356691555,-480.0,0.00021828,2]
[381810126,1756356691564,-480.0,0.00021828,2]
[381810127,1756356691574,-480.0,0.00021828,2]
[381810128,1756356691583,-1204.91,0.00021828,2]
[381810129,1756356691593,-480.0,0.00021828,2]
[381810130,1756356691605,-664.77,0.00021828,2]
[381810131,1756356691614,-691.19,0.00021828,2]
[381810132,1756356691624,-480.0,0.00021832,2]
[381810133,1756356691633,-3421.67,0.00021832,2]
[381810134,1756356691642,-2533.07,0.00021832,2]
[381810135,1756356691652,-273.30348348,0.00021832,2]
[381810136,1756356691661,-480.0,0.00021832,2]
[381810137,1756356691671,-480.0,0.00021832,2]
[381810138,1756356691680,-480.0,0.00021832,2]
[381810139,1756356691690,-618.76,0.00021832,2]
[381810140,1756356691699,-1162.67,0.00021832,2]
[381810141,1756356691709,-480.0,0.00021832,2]
[381810142,1756356691718,-990.59,0.00021832,2]
[381810143,1756356691727,-5148.52,0.00021832,2]
[381810144,1756356691736,-611.25,0.00021832,2]
[381810145,1756356691746,-2671.32,0.00021832,2]
[381810146,1756356691756,-649.08,0.00021832,2]
[381810147,1756356691765,-5025.34,0.00021832,2]
[381810148,1756356691775,-668.07,0.00021832,2]
[381810149,1756356691784,-1650.5,0.00021832,2]
[381810150,1756356691793,-480.0,0.00021832,2]
[381810151,1756356691802,-480.0,0.00021834,2]
[381810152,1756356691812,-480.0,0.00021834,2]
[381810153,1756356691825,-480.0,0.00021834,2]
[381810154,1756356691834,-480.0,0.00021834,2]
[381810155,1756356691843,-480.0,0.00021834,2]
[381810156,1756356691852,-480.0,0.00021834,2]
[381810157,1756356691861,-480.0,0.00021834,2]
[381810158,1756356691870,-480.0,0.00021834,2]
[381810159,1756356691880,-480.0,0.00021834,2]
[381810160,1756356691889,-480.0,0.00021834,2]
[381810161,1756356691898,-622.73,0.00021834,2]
[381810162,1756356691907,-1146.81,0.00021834,2]
[381810163,1756356691916,-500.14,0.00021834,2]
[381810164,1756356691926,-480.0,0.00021834,2]
[381810165,1756356691935,-480.0,0.00021834,2]
[381810166,1756356691945,-480.0,0.00021834,2]
[381810167,1756356691954,-642.24,0.00021834,2]
[381810168,1756356691963,-480.0,0.00021834,2]
[381810169,1756356691973,-747.48,0.00021834,2]
[381810170,1756356691982,-700.51,0.00021834,2]
[381810171,1756356691991,-480.0,0.00021834,2]
[381810172,1756356692000,-480.0,0.00021834,2]
[381810173,1756356692009,-480.0,0.00021834,2]
[381810174,1756356692018,-480.0,0.00021834,2]
[381810175,1756356692028,-480.0,0.00021834,2]
[381810176,1756356692037,-480.0,0.00021834,2]
[381810177,1756356692046,-610.79,0.00021834,2]
[381810178,1756356692055,-697.37,0.00021834,2]
[381810179,1756356692065,-485.48,0.00021834,2]
[381810180,1756356692075,-480.0,0.00021834,2]
[381810181,1756356692085,-480.0,0.00021834,2]
[381810182,1756356692094,-499.7,0.00021834,2]
[381810183,1756356692104,-943.25,0.00021834,2]
[381810184,1756356692114,-480.0,0.00021834,2]
[381810185,1756356692124,-701.41,0.00021834,2]
[381810186,1756356692134,-925.93,0.00021834,2]
[381810187,1756356692143,-606.07,0.00021834,2]
[381810188,1756356692152,-480.0,0.00021834,2]
[381810189,1756356692161,-480.0,0.00021834,2]
[381810190,1756356692170,-536.25,0.00021834,2]
[381810191,1756356692180,-845.24,0.00021834,2]
[381810192,1756356692189,-688.62,0.00021834,2]
[381810193,1756356692198,-586.1,0.00021834,2]
[381810194,1756356692208,-480.0,0.00021834,2]
[381810195,1756356692217,-581.67,0.00021834,2]
[381810196,1756356692226,-480.0,0.00021834,2]
[381810197,1756356692235,-480.0,0.00021834,2]
[381810198,1756356692244,-480.0,0.00021834,2]
[381810199,1756356692253,-570.61,0.00021834,2]
[381810200,1756356692263,-1192.99,0.00021834,2]
[381810201,1756356692272,-480.0,0.00021834,2]
[381810202,1756356692281,-782.62,0.00021834,2]
[381810203,1756356692290,-556.25,0.00021834,2]
[381810204,1756356692299,-480.0,0.00021834,2]
[381810205,1756356692309,-883.69,0.00021834,2]
[381810206,1756356692318,-480.0,0.00021834,2]
[381810207,1756356692327,-480.0,0.00021834,2]
[381810208,1756356692337,-480.0,0.00021834,2]
[381810209,1756356692346,-480.0,0.00021834,2]
[381810210,1756356692356,-480.0,0.00021834,2]
[381810211,1756356692366,-480.0,0.00021834,2]
[381810212,1756356692376,-888.61,0.00021834,2]
[381810213,1756356692388,-929.96,0.00021834,2]
[381810214,1756356692397,-480.0,0.00021834,2]
[381810215,1756356692411,-480.0,0.00021834,2]
[381810216,1756356692420,-480.0,0.00021834,2]
[381810217,1756356692429,-532.14,0.00021834,2]
[381810218,1756356692439,-480.0,0.00021834,2]
[381810219,1756356692448,-480.0,0.00021834,2]
[381810220,1756356692457,-554.4380661,0.00021834,2]
[381810221,1756356692466,-480.0,0.00021834,2]
[381810222,1756356692476,-480.0,0.00021834,2]
[381810223,1756356692486,-1377.69,0.00021834,2]
[381810224,1756356692495,-480.0,0.00021834,2]
[381810225,1756356692504,-678.55,0.00021834,2]
[381810226,1756356692513,-480.0,0.00021834,2]
[381810227,1756356692523,-601.87,0.00021834,2]
[381810228,1756356692536,-480.0,0.00021834,2]
[381810229,1756356692546,-480.0,0.00021834,2]
[381810230,1756356692555,-517.59,0.00021834,2]
[381810231,1756356692564,-420.67992673,0.00021834,2]
[381810232,1756356692575,-480.0,0.00021834,2]
[381810233,1756356692584,-524.07,0.00021834,2]
[381810234,1756356692593,-480.0,0.00021834,2]
[381810235,1756356692602,-488.41,0.00021834,2]
[381810236,1756356692611,-1224.27,0.00021834,2]
[381810237,1756356692622,-480.0,0.00021834,2]
[381810238,1756356692631,-664.64,0.00021834,2]
[381810239,1756356692641,-892.32,0.00021834,2]
[381810240,1756356692650,-500.0,0.00021834,2]
[381810241,1756356692659,-482.15058349,0.00021834,2]
[381810242,1756356692669,-639.32,0.00021834,2]
[381810243,1756356692678,-480.0,0.00021834,2]
[381810244,1756356692687,-480.0,0.00021834,2]
[381810245,1756356692696,-480.0,0.00021834,2]
[381810246,1756356692706,-480.0,0.00021834,2]
[381810247,1756356692715,-480.0,0.00021834,2]
[381810248,1756356692723,-480.0,0.00021834,2]
[381810249,1756356692732,-480.0,0.00021834,2]
[381810250,1756356692742,-527.37,0.00021834,2]
[381810251,1756356692751,-480.0,0.00021834,2]
[381810252,1756356692760,-480.0,0.00021834,2]
[381810253,1756356692769,-610.89,0.00021834,2]
[381810254,1756356692778,-480.0,0.00021834,2]
[381810255,1756356692787,-480.0,0.00021834,2]
[381810256,1756356692796,-507.04,0.00021834,2]
[381810257,1756356692806,-480.0,0.00021834,2]
[381810258,1756356692941,-480.0,0.00021834,2]
[381810259,1756356692951,-541.0,0.00021834,2]
[381810260,1756356692960,-480.0,0.00021834,2]
[381810261,1756356692969,-480.0,0.00021834,2]
[381810262,1756356692979,-935.42,0.00021834,2]
[381810263,1756356692988,-728.91,0.00021834,2]
[381810264,1756356692997,-480.0,0.00021834,2]
[381810265,1756356693006,-480.0,0.00021834,2]
[381810266,1756356693015,-480.0,0.00021834,2]
[381810267,1756356693025,-204.80336684,0.00021834,2]
[381810268,1756356693034,-512.28,0.00021834,2]
[381810269,1756356693043,-480.0,0.00021834,2]
[381810270,1756356693053,-480.0,0.00021834,2]
[381810271,1756356693062,-671.05,0.00021834,2]
[381810272,1756356693072,-480.0,0.00021834,2]
[381810273,1756356693081,-480.0,0.00021834,2]
[381810274,1756356693091,-480.0,0.00021834,2]
[381810275,1756356693100,-480.0,0.00021834,2]
[381810276,1756356693110,-480.0,0.00021834,2]
[381810277,1756356693119,-480.0,0.00021834,2]
[381810278,1756356693128,-480.0,0.00021834,2]
[381810279,1756356693138,-528.67,0.00021834,2]
[381810280,1756356693147,-587.59,0.00021834,2]
[381810281,1756356693157,-622.69,0.00021834,2]
[381810282,1756356693167,-706.72,0.00021834,2]
[381810283,1756356693176,-920.23,0.00021834,2]
[381810284,1756356693186,-480.0,0.00021834,2]
[381810285,1756356693196,-480.0,0.00021834,2]
[381810286,1756356693206,-480.0,0.00021834,2]
[381810287,1756356693216,-480.0,0.00021834,2]
[381810288,1756356693227,-729.8,0.00021834,2]
[381810289,1756356693236,-480.0,0.00021834,2]
[381810290,1756356693246,-480.0,0.00021834,2]
[381810291,1756356693255,-1083.02,0.00021834,2]
[381810292,1756356693265,-621.43,0.00021834,2]
[381810293,1756356693275,-480.0,0.00021834,2]
[381810294,1756356693286,-519.69,0.00021834,2]
[381810295,1756356693295,-523.86,0.00021834,2]
[381810296,1756356693304,-561.73,0.00021834,2]
[381810297,1756356693314,-494.37,0.00021834,2]
[381810298,1756356693323,-691.54,0.00021834,2]
[381810299,1756356693333,-480.0,0.00021834,2]
[381810300,1756356693342,-376.48139921,0.00021834,2]
[381810301,1756356693352,-492.19,0.00021834,2]
[381810302,1756356693362,-891.36,0.00021834,2]
[381810303,1756356693373,-475.73586994,0.00021834,2]
[381810304,1756356693382,-683.2,0.00021834,2]
[381810305,1756356693391,-1205.3,0.00021834,2]
[381810306,1756356693401,-641.39,0.00021834,2]
[381810307,1756356693411,-480.0,0.00021834,2]
[381810308,1756356693420,-480.0,0.00021834,2]
[381810309,1756356693430,-480.0,0.00021834,2]
[381810310,1756356693440,-624.84,0.00021834,2]
[381810311,1756356693449,-587.8,0.00021834,2]
[381810312,1756356693460,-480.0,0.00021834,2]
[381810313,1756356693470,-508.69,0.00021834,2]
[381810314,1756356693479,-480.0,0.00021834,2]
[381810315,1756356693488,-597.29,0.00021834,2]
[381810316,1756356693498,-391.41226638,0.00021834,2]
[381810317,1756356693508,-656.82,0.00021834,2]
[381810318,1756356693517,-513.64,0.00021834,2]
[381810319,1756356693529,-555.82,0.00021834,2]
[381810320,1756356693539,-480.0,0.00021834,2]
[381810321,1756356693548,-509.52754952,0.00021834,2]
[381810322,1756356693558,-480.0,0.00021834,2]
[381810323,1756356693567,-852.11,0.00021834,2]
[381810324,1756356693576,-480.0,0.00021834,2]
[381810325,1756356693585,-664.95,0.00021834,2]
[381810326,1756356693595,-480.0,0.00021834,2]
[381810327,1756356693605,-480.0,0.00021834,2]
[381810328,1756356693615,-480.0,0.00021834,2]
[381810329,1756356693625,-595.33,0.00021834,2]
[381810330,1756356693634,-482.12182581,0.00021834,2]
[381810331,1756356693643,-480.0,0.00021834,2]
[381810332,1756356693652,-532.87,0.00021834,2]
[381810333,1756356693663,-857.97,0.00021834,2]
[381810334,1756356693672,-631.3,0.00021834,2]
[381810335,1756356693682,-480.0,0.00021834,2]
[381810336,1756356693692,-480.0,0.00021834,2]
[381810337,1756356693701,-8091.62,0.00021841,2]
[381810338,1756356693711,-1746.61,0.00021841,2]
[381810339,1756356693720,-6670.63,0.00021841,2]
[381810340,1756356693731,-859.24,0.00021844,2]
[381810341,1756356693740,-1694.54,0.00021844,2]
[381810342,1756356693749,-480.0,0.00021844,2]
[381810343,1756356693758,-480.0,0.00021846,2]
[381810344,1756356693768,-480.0,0.00021846,2]
[381810345,1756356693777,-1001.38214879,0.00021868,2]
[381810346,1756356693787,-1680.0,0.00021898,2]
[381810347,1756356693796,-548.0,0.00021899,2]
[381810348,1756356693805,-3000.0,0.000219,2]
[381810349,1756356693815,-3000.0,0.000219,2]
[381810350,1756356693823,-1215.0,0.00021901,2]
[381810351,1756356693833,-3000.0,0.0002191,2]
[381810352,1756356693842,-3000.0,0.0002191,2]
[381810353,1756356693851,-500.0,0.00021917,2]
[381810354,1756356693861,-500.0,0.00021917,2]
[381810355,1756356693871,-500.0,0.00021917,2]
[381810356,1756356693883,-500.0,0.00021917,2]
[381810357,1756356693901,-500.0,0.00021917,2]
[381810358,1756356693917,-500.0,0.00021917,2]
[381810359,1756356693935,-500.0,0.00021917,2]
[381810360,1756356693954,-224.052875,0.00021917,2]
[381810361,1756356693972,-179.691714,0.00021917,2]
[381810362,1756356693988,-153.0,0.00021918,2]
[381810363,1756356694005,-153.0,0.00021918,2]
[381810364,1756356694020,-153.0,0.00021918,2]
[381810365,1756356694035,-153.0,0.00021918,2]
[381810366,1756356694054,-153.0,0.00021918,2]
[381810367,1756356694072,-153.0,0.00021918,2]
[381810368,1756356694084,-153.0,0.00021918,2]
[381810369,1756356694102,-153.0,0.00021918,2]
[381810370,1756356694116,-151.0,0.00021918,2]
[381810371,1756356694133,-151.0,0.00021918,2]
[381810372,1756356694145,-151.0,0.00021918,2]
[381810373,1756356694162,-151.0,0.00021918,2]
[381810374,1756356694176,-290.01123324,0.00021918,2]
[381810375,1756356694191,-150.0,0.00021918,2]
[381810376,1756356694207,-150.0,0.00021918,2]
[381810377,1756356694221,-3000.0,0.0002192,2]
[381810378,1756356694236,-3000.0,0.0002192,2]
[381810379,1756356694251,-3000.0,0.0002193,2]
[381810380,1756356694265,-3000.0,0.0002193,2]
[381810381,1756356694279,-500.0,0.00021934,2]
[381810382,1756356694294,-536.12,0.00021934,2]
[381810383,1756356694310,-602.26,0.00021934,2]
[381810384,1756356694324,-1007.62,0.00021934,2]
[381810385,1756356694339,-873.01,0.00021934,2]
[381810386,1756356694353,-3000.0,0.0002194,2]
[381810387,1756356694367,-3000.0,0.0002194,2]
[381810388,1756356694382,-3000.0,0.0002195,2]
[381810389,1756356694398,-3000.0,0.0002195,2]
[381810390,1756356694412,-2727.86,0.00021958,2]
[381810391,1756356694428,-764.1,0.00021958,2]
[381810392,1756356694443,-1625.43,0.00021958,2]
[381810393,1756356694456,-560.22,0.00021958,2]
[381810394,1756356694471,-3000.0,0.0002196,2]
[381810395,1756356694485,-3000.0,0.0002196,2]
[381810396,1756356694499,-3000.0,0.0002197,2]
[381810397,1756356694514,-3000.0,0.0002197,2]
[381810398,1756356694529,-155.78536609,0.00021973,2]
[381810399,1756356694544,-256.263232,0.00021973,2]
[381810400,1756356694558,-500.78988638,0.00021973,2]
[381810401,1756356694572,-197.50478745,0.00021973,2]
[381810402,1756356694586,-502.48446753,0.00021973,2]
[381810403,1756356694601,-500.0,0.00021973,2]
[381810404,1756356694615,-151.0,0.00021973,2]
[381810405,1756356694631,-500.0,0.00021973,2]
[381810406,1756356694645,-151.0,0.00021973,2]
[381810407,1756356694659,-151.0,0.00021973,2]
[381810408,1756356694673,-151.0,0.00021973,2]
[381810409,1756356694688,-1093.0,0.00021973,2]
[381810410,1756356694701,-153.42354929,0.00021973,2]
[381810411,1756356694715,-375.74421518,0.00021973,2]
[381810412,1756356694730,-246.50827274,0.00021973,2]
[381810413,1756356694744,-500.0,0.00021973,2]
[381810414,1756356694758,-180.12538956,0.00021973,2]
[381810415,1756356694772,-351.75884863,0.00021973,2]
[381810416,1756356694786,-500.0,0.00021973,2]
[381810417,1756356694801,-151.4981627,0.00021973,2]
[381810418,1756356694815,-500.0,0.00021973,2]
[381810419,1756356694829,-436.67806057,0.00021973,2]
[381810420,1756356694845,-151.59436882,0.00021973,2]
[381810421,1756356694860,-199.47899243,0.00021973,2]
[381810422,1756356694874,-571.25348856,0.00021973,2]
[381810423,1756356694889,-3000.0,0.0002198,2]
[381810424,1756356694903,-3000.0,0.0002198,2]
[381810425,1756356694916,-3000.0,0.0002199,2]
[381810426,1756356694931,-3000.0,0.0002199,2]
[381810427,1756356694945,-168.01383662,0.00022,10]
[381810428,1756356694959,-4497.69145171,0.00022,10]
[381810429,1756356694975,-93296.8,0.00022,2]
[381810430,1756356694989,-14209.03,0.00022,2]
[381810431,1756356695003,-4322.98,0.00022,7]
[381810432,1756356695017,-28089.59,0.00022,7]
[381810433,1756356695032,-4121.067315,0.00022,2]
[381810434,1756356695046,-3000.0,0.00022,2]
[381810435,1756356695063,-256.35993555,0.00022007,2]
[381810436,1756356695077,-3000.0,0.0002201,2]
[381810437,1756356695091,-187.0,0.00022013,2]
[381810438,1756356695105,-2000.0,0.00022016,2]
[381810439,1756356695119,-2004.58132856,0.00022016,2]
[381810440,1756356695136,-2000.0,0.00022016,2]
[381810441,1756356695150,-166.61501606,0.00022016,2]
[381810442,1756356695164,-848.96036793,0.00022016,2]
[381810443,1756356695178,-1981.73288359,0.00022016,2]
[381810444,1756356695193,-2000.0,0.00022016,2]
[381810445,1756356695207,-2004.82354479,0.00022016,2]
[381810446,1756356695221,-1186.98362334,0.00022016,2]
[381810447,1756356695236,-1137.49366838,0.00022016,2]
[381810448,1756356695251,-2000.0,0.00022016,2]
[381810449,1756356695266,-667.98518684,0.00022016,2]
[381810450,1756356695281,-2013.42447899,0.00022016,2]
[381810451,1756356695296,-1010.34617617,0.00022016,2]
[381810452,1756356695311,-1145.11635765,0.00022016,2]
[381810453,1756356695326,-3000.0,0.0002202,2]
[381810454,1756356695340,-3000.0,0.0002203,2]
[381810455,1756356695355,-480.0,0.00022032,2]
[381810456,1756356695547,-939.37,0.00022032,2]
[381810457,1756356695559,-500.63,0.00022032,2]
[381810458,1756356695568,-480.0,0.00022032,2]
[381810459,1756356695578,-562.77788372,0.00022032,2]
[381810460,1756356695588,-480.0,0.00022032,2]
[381810461,1756356695600,-480.0,0.00022032,2]
[381810462,1756356695610,-355.72550896,0.00022032,2]
[381810463,1756356695621,-480.0,0.00022032,2]
[381810464,1756356695631,-480.0,0.00022032,2]